[Event "15th Lazio Festival 2022"]
[Site "Rome"]
[Date "2022.01.06"]
[Round "7.6"]
[White "Agostini, Maurizio"]
[Black "Di Maulo, Alessandra"]
[Result "1-0"]
[ECO "D37"]
[WhiteElo "1972"]
[BlackElo "1810"]
[Annotator "NA"]
[PlyCount "133"]
[EventDate "2022.01.02"]
[EventType "swiss"]
[EventCountry "ITA"]
[SourceTitle "playchess.com"]
[Source "ChessBase"]
[SourceQuality "1"]
[TimeControl "5400+30"]

1. d4 {[%emt 1:31:00]} d5 {[%emt 1:31:00]} 2. c4 {[%emt 0:00:30]} e6 {[%emt 0:00:30]} 3. Nc3 {[%emt 0:00:30]} Be7 {[%emt 0:00:30]} 4. Nf3 {[%emt 0:00:30]} Nf6 {[%emt 0:00:30]} 5. Bf4 {[%emt 0:00:30]} O-O {[%emt 0:00:30]} 6. e3 {[%emt 0:00:30]} h6 {[%emt 0:00:30]} 7. h3 {[%emt 0:00:30]} dxc4 {[%emt 0:00:30]} 8. Bxc4 {[%emt 0:00:30]} a6 {[%emt 0:00:30]} 9. O-O {[%emt 0:00:30]} b5 {[%emt 0:00:30]} 10. Bd3 {[%emt 0:00:30]} Bb7 {[%emt 0:00:30]} 11. Rc1 {[%emt 0:00:30]} Nbd7 {[%emt 0:00:30]} 12. Qe2 {[%emt 0:00:30]} c5 {[%emt 0:00:30]} 13. Rfd1 {[%emt 0:00:30]} Qb6 {[%emt 0:00:30]} 14. dxc5 {[%emt 0:00:30]} Nxc5 $11 {[%emt 0:00:30]} 15. Bc2 {[%emt 0:00:30]} Rfd8 {[%emt 0:00:30]} 16. b4 {[%emt 0:00:30]} Rxd1+ {[%emt 0:00:30]} 17. Qxd1 {[%emt 0:00:30]} Ncd7 {[%emt 0:00:30]} 18. a3 {[%emt 0:00:30]} Rc8 {[%emt 0:00:30]} 19. Bd3 {[%emt 0:00:30]} Qd8 {[%emt 0:00:30]} 20. Ne5 {[%emt 0:00:30]} Nxe5 {[%emt 0:00:30]} 21. Bxe5 {[%emt 0:00:30]} Nd5 {[%emt 0:00:30]} 22. Qg4 {[%emt 0:00:30]} Bf6 {[%emt 0:00:30]} 23. Qd4 {[%emt 0:00:30]} Nxc3 {[%emt 0:00:30]} 24. Qxd8+ {[%emt 0:00:30]} Rxd8 {[%emt 0:00:30]} 25. Bxf6 {[%emt 0:00:30]} Rxd3 {[%emt 0:00:30]} 26. Bxc3 {[%emt 0:00:30]} Kf8 {[%emt 0:00:30]} 27. Kf1 {[%emt 0:00:30]} f6 {[%emt 0:00:30]} 28. Ke2 {[%emt 0:00:30]} Rd7 {[%emt 0:00:30]} 29. g3 {[%emt 0:00:30]} Ke7 {[%emt 0:00:30]} 30. Bd4 {[%emt 0:00:30]} h5 {[%emt 0:00:30]} 31. h4 {[%emt 0:00:30]} Kd8 {[%emt 0:00:30]} 32. f3 {[%emt 0:00:30]} Ke7 {[%emt 0:00:30]} 33. g4 {[%emt 0:00:30]} g6 {[%emt 0:00:30]} 34. gxh5 {[%emt 0:00:30]} gxh5 {[%emt 0:00:30]} 35. Rc5 {[%emt 0:00:30]} Rd5 {[%emt 0:00:30]} 36. Rc7+ {[%emt 0:00:30]} Rd7 {[%emt 0:00:30]} 37. Bxf6+ {[%emt 0:00:30]} Ke8 {[%emt 0:00:30]} 38. Rxd7 {[%emt 0:00:30]} Kxd7 {[%emt 0:00:30]} 39. Kf2 {[%emt 0:00:30]} Bd5 {[%emt 0:00:30]} 40. e4 {[%emt 0:00:30]} Bc4 {[%emt 0:00:30]} 41. Ke3 {[%emt 0:00:30]} Bf1 {[%emt 0:00:30]} 42. Kd4 {[%emt 0:00:30]} Kc6 {[%emt 0:00:30]} 43. Ke5 {[%emt 0:00:30]} Kd7 {[%emt 0:00:30]} 44. Kf4 {[%emt 0:00:30]} Be2 {[%emt 0:00:30]} 45. Ke3 {[%emt 0:00:30]} Bf1 {[%emt 0:00:30]} 46. Kd4 {[%emt 0:00:30]} Kc6 {[%emt 0:00:30]} 47. f4 {[%emt 0:00:30]} Bh3 {[%emt 0:00:30]} 48. Ke5 {[%emt 0:00:30]} Bg4 {[%emt 0:00:30]} 49. Bg5 {[%emt 0:00:30]} Kd7 {[%emt 0:00:30]} 50. Kf6 {[%emt 0:00:30]} Bf3 {[%emt 0:00:30]} 51. Ke5 {[%emt 0:00:30]} Bg4 {[%emt 0:00:30]} 52. f5 {[%emt 0:00:30]} exf5 {[%emt 0:00:30]} 53. exf5 {[%emt 0:00:30]} Ke8 {[%emt 0:00:30]} 54. Kf6 {[%emt 0:00:30]} Kf8 {[%emt 0:00:30]} 55. Kg6 {[%emt 0:00:30]} Bf3 {[%emt 0:00:30]} 56. Bh6+ {[%emt 0:00:30]} Kg8 {[%emt 0:00:30]} 57. f6 {[%emt 0:00:30]} Bd5 {[%emt 0:00:30]} 58. Kxh5 {[%emt 0:00:30]} Bf7+ {[%emt 0:00:30]} 59. Kg5 {[%emt 0:00:30]} Kh7 {[%emt 0:00:30]} 60. Bf8 {[%emt 0:00:30]} Be6 {[%emt 0:00:30]} 61. Kf4 {[%emt 0:00:30]} Kg6 {[%emt 0:00:30]} 62. Ke5 {[%emt 0:00:30]} Bg4 {[%emt 0:00:30]} 63. Bc5 {[%emt 0:00:30]} Kf7 {[%emt 0:00:30]} 64. Bd4 {[%emt 0:00:30]} Kg6 {[%emt 0:00:30]} 65. Kd6 {[%emt 0:00:30]} Bf3 {[%emt 0:00:30]} 66. Ke7 {[%emt 0:00:30]} Bd5 {[%emt 0:00:30]} 67. h5+ {[%emt 0:00:30]} 1-0